[Event "Titled Tuesday Blitz July 25 Early 2023"]
[White "Mmukka"]
[Black "Torres Hernandez, Leslie Carolin"]
[BlackFideId "8400504"]
[WhiteElo "2494"]
[BlackElo "2275"]
[Result "1-0"]
[Round "7"]
[TimeControl "180+2"]
[Date "2023.07.25"]
[WhiteClock "0:00:09"]
[BlackClock "0:00:36"]
[Board "129"]

1. e4 {[%clk 0:02:58]}  c5 {[%clk 0:02:57]} 2. Nf3 {[%clk 0:02:58]}  d6 {[%clk 0:02:55]} 3. d4 {[%clk 0:02:58]}  cxd4 {[%clk 0:02:48]} 4. Nxd4 {[%clk 0:02:59]}  Nf6 {[%clk 0:02:48]} 5. Nc3 {[%clk 0:02:59]}  a6 {[%clk 0:02:48]} 6. h3 {[%clk 0:02:59]}  e5 {[%clk 0:02:42]} 7. Nde2 {[%clk 0:02:54]}  h5 {[%clk 0:02:42]} 8. g3 {[%clk 0:02:54]}  Be6 {[%clk 0:02:40]} 9. Bg2 {[%clk 0:02:52]}  g6 {[%clk 0:02:36]} 10. O-O {[%clk 0:02:49]}  h4 {[%clk 0:02:00]} 11. g4 {[%clk 0:02:22]}  Nbd7 {[%clk 0:01:57]} 12. a4 {[%clk 0:02:11]}  Be7 {[%clk 0:01:52]} 13. Nd5 {[%clk 0:01:58]}  Bxd5 {[%clk 0:01:50]} 14. exd5 {[%clk 0:01:58]}  Rc8 {[%clk 0:01:48]} 15. Be3 {[%clk 0:01:52]}  Nb6 {[%clk 0:01:44]} 16. b3 {[%clk 0:01:51]}  Nbd7 {[%clk 0:01:37]} 17. a5 {[%clk 0:01:49]}  Nh7 {[%clk 0:01:33]} 18. c4 {[%clk 0:01:47]}  Bg5 {[%clk 0:01:29]} 19. f4 {[%clk 0:01:45]}  exf4 {[%clk 0:01:26]} 20. Bd4 {[%clk 0:01:10]}  O-O {[%clk 0:01:25]} 21. Nxf4 {[%clk 0:01:09]}  Re8 {[%clk 0:01:22]} 22. Qd3 {[%clk 0:01:01]}  Ne5 {[%clk 0:01:21]} 23. Qc2 {[%clk 0:00:52]}  Bf6 {[%clk 0:01:13]} 24. Bb6 {[%clk 0:00:43]}  Qd7 {[%clk 0:01:10]} 25. Rae1 {[%clk 0:00:41]}  Bd8 {[%clk 0:01:05]} 26. Qf2 {[%clk 0:00:29]}  Bxb6 {[%clk 0:01:03]} 27. Qxb6 {[%clk 0:00:26]}  Qc7 {[%clk 0:01:01]} 28. Qxc7 {[%clk 0:00:21]}  Rxc7 {[%clk 0:01:02]} 29. Re3 {[%clk 0:00:14]}  Rc5 {[%clk 0:00:56]} 30. Ra1 {[%clk 0:00:11]}  Ng5 {[%clk 0:00:47]} 31. Nd3 {[%clk 0:00:11]}  Nef3+ {[%clk 0:00:38]} 32. Rxf3 {[%clk 0:00:09]}  Nxf3+ {[%clk 0:00:38]} 33. Bxf3 {[%clk 0:00:10]}  Rcc8 {[%clk 0:00:38]} 34. Kf2 {[%clk 0:00:10]}  Re7 {[%clk 0:00:36]} 35. Re1 {[%clk 0:00:10]}  Rce8 {[%clk 0:00:37]} 36. Rxe7 {[%clk 0:00:10]}  Rxe7 {[%clk 0:00:38]} 37. c5 {[%clk 0:00:09]}  dxc5 {[%clk 0:00:36]} 38. Nxc5 {[%clk 0:00:09]} 1-0


[Site "https://www.chess.com"]

[Event "Titled Tuesday Blitz July 25 Early 2023"]
[White "Karamsetty, Jeevan"]
[Black "Smietanska, Wiktoria"]
[WhiteFideId "2025337"]
[BlackFideId "21869359"]
[WhiteElo "2491"]
[BlackElo "2249"]
[Result "1-0"]
[Round "7"]
[TimeControl "180+2"]
[Date "2023.07.25"]
[WhiteClock "0:02:33"]
[BlackClock "0:01:59"]
[Board "131"]

1. e4 {[%clk 0:03:00]}  c5 {[%clk 0:02:59]} 2. Nf3 {[%clk 0:02:58]}  d6 {[%clk 0:02:59]} 3. Bb5+ {[%clk 0:02:56]}  Nd7 {[%clk 0:02:58]} 4. O-O {[%clk 0:02:54]}  Nf6 {[%clk 0:02:58]} 5. Qe2 {[%clk 0:02:53]}  a6 {[%clk 0:02:56]} 6. Bxd7+ {[%clk 0:02:53]}  Bxd7 {[%clk 0:02:55]} 7. e5 {[%clk 0:02:53]}  dxe5 {[%clk 0:02:55]} 8. Nxe5 {[%clk 0:02:52]}  Be6 {[%clk 0:02:54]} 9. d3 {[%clk 0:02:51]}  g6 {[%clk 0:02:52]} 10. Nc3 {[%clk 0:02:50]}  Bg7 {[%clk 0:02:50]} 11. Bg5 {[%clk 0:02:48]}  O-O {[%clk 0:02:49]} 12. Rae1 {[%clk 0:02:44]}  h6 {[%clk 0:02:44]} 13. Bh4 {[%clk 0:02:44]}  b5 {[%clk 0:02:27]} 14. Nxg6 {[%clk 0:02:44]}  Bg4 {[%clk 0:02:18]} 15. Nxe7+ {[%clk 0:02:40]}  Kh8 {[%clk 0:02:14]} 16. f3 {[%clk 0:02:35]}  Bf5 {[%clk 0:01:59]} 17. Nxf5 {[%clk 0:02:33]} 1-0


[Site "https://www.chess.com"]

[Event "Titled Tuesday Blitz July 25 Early 2023"]
[White "Timerkhanov, Alexander"]
[Black "Spaqi, Wilson"]
[WhiteFideId "24177938"]
[BlackFideId "2053888"]
[WhiteElo "2656"]
[BlackElo "2428"]
[Result "0-1"]
[Round "7"]
[TimeControl "180+2"]
[Date "2023.07.25"]
[WhiteClock "0:00:42"]
[BlackClock "0:00:15"]
[Board "132"]

1. d4 {[%clk 0:03:00]}  d5 {[%clk 0:02:59]} 2. c4 {[%clk 0:02:59]}  e6 {[%clk 0:02:59]} 3. Nc3 {[%clk 0:02:58]}  Be7 {[%clk 0:02:59]} 4. Nf3 {[%clk 0:02:57]}  Nf6 {[%clk 0:02:58]} 5. e3 {[%clk 0:02:57]}  c6 {[%clk 0:02:57]} 6. Qc2 {[%clk 0:02:57]}  Nbd7 {[%clk 0:02:57]} 7. b3 {[%clk 0:02:57]}  Bd6 {[%clk 0:02:52]} 8. Bb2 {[%clk 0:02:57]}  Qe7 {[%clk 0:02:53]} 9. Be2 {[%clk 0:02:53]}  O-O {[%clk 0:02:47]} 10. O-O {[%clk 0:02:53]}  b6 {[%clk 0:02:36]} 11. e4 {[%clk 0:02:52]}  dxe4 {[%clk 0:02:33]} 12. Nxe4 {[%clk 0:02:53]}  Nxe4 {[%clk 0:02:28]} 13. Qxe4 {[%clk 0:02:54]}  Bb7 {[%clk 0:02:28]} 14. Bd3 {[%clk 0:02:54]}  f5 {[%clk 0:02:23]} 15. Qe2 {[%clk 0:02:53]}  Rae8 {[%clk 0:02:19]} 16. Rfe1 {[%clk 0:02:53]}  Bb4 {[%clk 0:02:12]} 17. Red1 {[%clk 0:02:49]}  Ba3 {[%clk 0:02:06]} 18. Re1 {[%clk 0:02:19]}  Bb4 {[%clk 0:02:06]} 19. Nd2 {[%clk 0:02:17]}  Qg5 {[%clk 0:01:39]} 20. Nf3 {[%clk 0:02:07]}  Qh5 {[%clk 0:01:39]} 21. Red1 {[%clk 0:02:06]}  c5 {[%clk 0:01:13]} 22. a3 {[%clk 0:02:05]}  Ba5 {[%clk 0:01:12]} 23. dxc5 {[%clk 0:02:00]}  Bxf3 {[%clk 0:01:05]} 24. Qxf3 {[%clk 0:01:59]}  Qxf3 {[%clk 0:01:04]} 25. gxf3 {[%clk 0:01:59]}  bxc5 {[%clk 0:01:03]} 26. Bc2 {[%clk 0:01:57]}  Nf6 {[%clk 0:01:00]} 27. b4 {[%clk 0:01:52]}  cxb4 {[%clk 0:00:52]} 28. axb4 {[%clk 0:01:53]}  Bxb4 {[%clk 0:00:53]} 29. Rxa7 {[%clk 0:01:53]}  Rf7 {[%clk 0:00:53]} 30. Rda1 {[%clk 0:01:43]}  Bc5 {[%clk 0:00:49]} 31. Ra8 {[%clk 0:01:39]}  Rxa8 {[%clk 0:00:47]} 32. Rxa8+ {[%clk 0:01:36]}  Rf8 {[%clk 0:00:48]} 33. Ra5 {[%clk 0:01:36]}  Rc8 {[%clk 0:00:47]} 34. Ra6 {[%clk 0:01:34]}  Kf7 {[%clk 0:00:46]} 35. Ba4 {[%clk 0:01:34]}  Rd8 {[%clk 0:00:38]} 36. Rc6 {[%clk 0:01:32]}  Bxf2+ {[%clk 0:00:37]} 37. Kf1 {[%clk 0:01:30]}  Bd4 {[%clk 0:00:28]} 38. Rc7+ {[%clk 0:01:28]}  Kg6 {[%clk 0:00:28]} 39. Bxd4 {[%clk 0:01:14]}  Rxd4 {[%clk 0:00:29]} 40. Bb5 {[%clk 0:01:15]}  Rd2 {[%clk 0:00:25]} 41. c5 {[%clk 0:01:14]}  Nd5 {[%clk 0:00:20]} 42. Rc8 {[%clk 0:01:14]}  Rxh2 {[%clk 0:00:18]} 43. Bd7 {[%clk 0:01:11]}  Kf6 {[%clk 0:00:17]} 44. c6 {[%clk 0:01:12]}  Rc2 {[%clk 0:00:17]} 45. Rf8+ {[%clk 0:01:10]}  Ke5 {[%clk 0:00:17]} 46. Re8 {[%clk 0:01:10]}  Nf4 {[%clk 0:00:16]} 47. Ke1 {[%clk 0:01:09]}  Kd6 {[%clk 0:00:16]} 48. Rg8 {[%clk 0:01:08]}  g6 {[%clk 0:00:16]} 49. Rg7 {[%clk 0:01:09]}  h5 {[%clk 0:00:16]} 50. Rh7 {[%clk 0:01:08]}  Rxc6 {[%clk 0:00:17]} 51. Bxc6 {[%clk 0:01:08]}  Kxc6 {[%clk 0:00:18]} 52. Kf2 {[%clk 0:01:08]}  Kd5 {[%clk 0:00:18]} 53. Ke3 {[%clk 0:01:09]}  Ke5 {[%clk 0:00:19]} 54. Ra7 {[%clk 0:01:09]}  Nd5+ {[%clk 0:00:19]} 55. Kf2 {[%clk 0:01:09]}  Kf6 {[%clk 0:00:19]} 56. Ra4 {[%clk 0:01:10]}  g5 {[%clk 0:00:19]} 57. Ra5 {[%clk 0:01:10]}  Nf4 {[%clk 0:00:20]} 58. Ra8 {[%clk 0:01:10]}  h4 {[%clk 0:00:21]} 59. Rf8+ {[%clk 0:01:09]}  Ke5 {[%clk 0:00:21]} 60. Rg8 {[%clk 0:01:09]}  Kf6 {[%clk 0:00:21]} 61. Rh8 {[%clk 0:01:08]}  Kg7 {[%clk 0:00:21]} 62. Ra8 {[%clk 0:01:08]}  Ng6 {[%clk 0:00:19]} 63. Ra6 {[%clk 0:01:05]}  Kf6 {[%clk 0:00:20]} 64. Ra5 {[%clk 0:01:06]}  g4 {[%clk 0:00:19]} 65. fxg4 {[%clk 0:01:06]}  fxg4 {[%clk 0:00:20]} 66. Ke3 {[%clk 0:01:06]}  e5 {[%clk 0:00:20]} 67. Ke4 {[%clk 0:01:06]}  Kg5 {[%clk 0:00:21]} 68. Ra3 {[%clk 0:01:05]}  h3 {[%clk 0:00:22]} 69. Ke3 {[%clk 0:01:03]}  Ne7 {[%clk 0:00:20]} 70. Kf2 {[%clk 0:01:02]}  Nf5 {[%clk 0:00:21]} 71. Ra5 {[%clk 0:01:02]}  Kf4 {[%clk 0:00:21]} 72. Ra4+ {[%clk 0:01:02]}  e4 {[%clk 0:00:22]} 73. Rb4 {[%clk 0:01:02]}  g3+ {[%clk 0:00:23]} 74. Kg1 {[%clk 0:01:02]}  Nh4 {[%clk 0:00:22]} 75. Kh1 {[%clk 0:01:00]}  g2+ {[%clk 0:00:22]} 76. Kh2 {[%clk 0:00:59]}  Nf3+ {[%clk 0:00:23]} 77. Kxh3 {[%clk 0:01:00]}  g1=Q {[%clk 0:00:15]} 78. Rxe4+ {[%clk 0:01:00]}  Kf5 {[%clk 0:00:15]} 79. Rf4+ {[%clk 0:01:01]}  Ke5 {[%clk 0:00:15]} 80. Rf5+ {[%clk 0:00:52]}  Ke4 {[%clk 0:00:15]} 81. Rf4+ {[%clk 0:00:51]}  Ke3 {[%clk 0:00:15]} 82. Re4+ {[%clk 0:00:46]}  Kd3 {[%clk 0:00:13]} 83. Rd4+ {[%clk 0:00:44]}  Qxd4 {[%clk 0:00:13]} 84. Kg3 {[%clk 0:00:43]}  Ne5 {[%clk 0:00:14]} 85. Kg2 {[%clk 0:00:43]}  Qg4+ {[%clk 0:00:14]} 86. Kf1 {[%clk 0:00:44]}  Qe2+ {[%clk 0:00:13]} 87. Kg1 {[%clk 0:00:42]}  Nf3+ {[%clk 0:00:14]} 88. Kh1 {[%clk 0:00:42]}  Qh2# {[%clk 0:00:15]} 0-1


[Site "https://www.chess.com"]

[Event "Titled Tuesday Blitz July 25 Early 2023"]
[White "Bristy Mukherjee"]
[Black "Tologon tegin, Semetei"]
[WhiteFideId "25077325"]
[BlackFideId "13800574"]
[WhiteElo "2422"]
[BlackElo "2576"]
[Result "0-1"]
[Round "7"]
[TimeControl "180+2"]
[Date "2023.07.25"]
[WhiteClock "0:00:37"]
[BlackClock "0:00:45"]
[Board "134"]

1. Nc3 {[%clk 0:03:00]}  g6 {[%clk 0:02:44]} 2. h4 {[%clk 0:02:58]}  Bg7 {[%clk 0:02:45]} 3. h5 {[%clk 0:02:59]}  b6 {[%clk 0:02:45]} 4. hxg6 {[%clk 0:02:59]}  hxg6 {[%clk 0:02:44]} 5. Rxh8 {[%clk 0:02:59]}  Bxh8 {[%clk 0:02:45]} 6. d4 {[%clk 0:02:59]}  Bb7 {[%clk 0:02:45]} 7. e4 {[%clk 0:02:58]}  d6 {[%clk 0:02:45]} 8. Nf3 {[%clk 0:02:58]}  Nd7 {[%clk 0:02:45]} 9. d5 {[%clk 0:02:57]}  Bxc3+ {[%clk 0:02:41]} 10. bxc3 {[%clk 0:02:57]}  Ngf6 {[%clk 0:02:41]} 11. Bd3 {[%clk 0:02:55]}  c6 {[%clk 0:02:41]} 12. c4 {[%clk 0:02:54]}  Qc7 {[%clk 0:02:40]} 13. Bb2 {[%clk 0:02:50]}  O-O-O {[%clk 0:02:40]} 14. a4 {[%clk 0:02:49]}  Rh8 {[%clk 0:02:32]} 15. Ke2 {[%clk 0:02:48]}  Nc5 {[%clk 0:02:25]} 16. Ng5 {[%clk 0:02:43]}  Rh5 {[%clk 0:02:12]} 17. Qd2 {[%clk 0:02:33]}  Rh2 {[%clk 0:01:49]} 18. Qf4 {[%clk 0:02:19]}  Rxg2 {[%clk 0:01:47]} 19. Rh1 {[%clk 0:02:19]}  Ba6 {[%clk 0:01:41]} 20. Kf1 {[%clk 0:02:15]}  Rg4 {[%clk 0:01:37]} 21. Qf3 {[%clk 0:02:10]}  Rxg5 {[%clk 0:01:35]} 22. Bxf6 {[%clk 0:02:03]}  exf6 {[%clk 0:01:36]} 23. Qxf6 {[%clk 0:02:02]}  Rh5 {[%clk 0:01:35]} 24. Rxh5 {[%clk 0:01:57]}  gxh5 {[%clk 0:01:36]} 25. Qf5+ {[%clk 0:01:57]}  Kb7 {[%clk 0:01:35]} 26. e5 {[%clk 0:01:47]}  dxe5 {[%clk 0:01:32]} 27. dxc6+ {[%clk 0:01:43]}  Kxc6 {[%clk 0:01:31]} 28. Be2 {[%clk 0:01:39]}  Qe7 {[%clk 0:01:22]} 29. Qxh5 {[%clk 0:01:34]}  Nxa4 {[%clk 0:01:19]} 30. Qf3+ {[%clk 0:01:26]}  Kc7 {[%clk 0:01:14]} 31. Qa8 {[%clk 0:01:23]}  Kd6 {[%clk 0:01:11]} 32. Qb8+ {[%clk 0:01:11]}  Kc6 {[%clk 0:01:00]} 33. Qa8+ {[%clk 0:01:06]}  Kd6 {[%clk 0:00:55]} 34. Qd5+ {[%clk 0:01:05]}  Kc7 {[%clk 0:00:54]} 35. Qa8 {[%clk 0:01:03]}  Bb7 {[%clk 0:00:53]} 36. Qxa7 {[%clk 0:01:00]}  Nc5 {[%clk 0:00:51]} 37. Qa1 {[%clk 0:00:57]}  f5 {[%clk 0:00:47]} 38. Qc3 {[%clk 0:00:56]}  Qg7 {[%clk 0:00:47]} 39. Ke1 {[%clk 0:00:54]}  Qg1+ {[%clk 0:00:46]} 40. Bf1 {[%clk 0:00:53]}  Qxf2+ {[%clk 0:00:46]} 41. Kxf2 {[%clk 0:00:37]}  Ne4+ {[%clk 0:00:45]} 0-1


[Site "https://www.chess.com"]

[Event "Titled Tuesday Blitz July 25 Early 2023"]
[White "Terletsky, Oleg"]
[Black "Molina Carretero, Daniel"]
[WhiteFideId "14116774"]
[BlackFideId "32071914"]
[WhiteElo "2518"]
[BlackElo "2413"]
[Result "0-1"]
[Round "7"]
[TimeControl "180+2"]
[Date "2023.07.25"]
[WhiteClock "0:00:11"]
[BlackClock "0:01:03"]
[Board "137"]

1. e4 {[%clk 0:03:00]}  c5 {[%clk 0:03:00]} 2. Nf3 {[%clk 0:03:00]}  d6 {[%clk 0:03:00]} 3. d4 {[%clk 0:03:00]}  cxd4 {[%clk 0:03:01]} 4. Nxd4 {[%clk 0:03:01]}  Nf6 {[%clk 0:03:02]} 5. Nc3 {[%clk 0:03:01]}  g6 {[%clk 0:03:02]} 6. Bc4 {[%clk 0:03:01]}  Bg7 {[%clk 0:03:02]} 7. f3 {[%clk 0:03:02]}  Nc6 {[%clk 0:03:02]} 8. Be3 {[%clk 0:03:02]}  O-O {[%clk 0:03:03]} 9. Qd2 {[%clk 0:03:03]}  Bd7 {[%clk 0:03:02]} 10. h4 {[%clk 0:03:02]}  Qa5 {[%clk 0:03:02]} 11. h5 {[%clk 0:02:40]}  Nxh5 {[%clk 0:03:00]} 12. Nb3 {[%clk 0:02:31]}  Qb4 {[%clk 0:02:54]} 13. Bd3 {[%clk 0:02:08]}  Na5 {[%clk 0:02:52]} 14. Bh6 {[%clk 0:01:02]}  Bf6 {[%clk 0:02:16]} 15. Bxf8 {[%clk 0:00:26]}  Rxf8 {[%clk 0:02:13]} 16. g4 {[%clk 0:00:26]}  Rc8 {[%clk 0:01:52]} 17. a3 {[%clk 0:00:20]}  Nxb3 {[%clk 0:01:51]} 18. axb4 {[%clk 0:00:20]}  Nxd2 {[%clk 0:01:50]} 19. Kxd2 {[%clk 0:00:21]}  Nf4 {[%clk 0:01:48]} 20. Rxa7 {[%clk 0:00:19]}  Nxd3 {[%clk 0:01:27]} 21. cxd3 {[%clk 0:00:18]}  Bc6 {[%clk 0:01:28]} 22. b5 {[%clk 0:00:18]}  Bxc3+ {[%clk 0:01:27]} 23. bxc3 {[%clk 0:00:18]}  Bxb5 {[%clk 0:01:28]} 24. c4 {[%clk 0:00:18]}  Bc6 {[%clk 0:01:27]} 25. d4 {[%clk 0:00:16]}  b5 {[%clk 0:01:15]} 26. cxb5 {[%clk 0:00:12]}  Bxb5 {[%clk 0:01:15]} 27. Rxe7 {[%clk 0:00:12]}  Ra8 {[%clk 0:01:12]} 28. Rc1 {[%clk 0:00:12]}  Ra2+ {[%clk 0:01:08]} 29. Rc2 {[%clk 0:00:12]}  Ra3 {[%clk 0:01:05]} 30. Rc3 {[%clk 0:00:11]}  Ra2+ {[%clk 0:01:05]} 31. Ke3 {[%clk 0:00:11]}  g5 {[%clk 0:01:04]} 32. e5 {[%clk 0:00:11]}  Re2# {[%clk 0:01:03]} 0-1


[Site "https://www.chess.com"]

[Event "Titled Tuesday Blitz July 25 Early 2023"]
[White "Shubenkova, Veronika"]
[Black "Tobak, Mikhail"]
[WhiteFideId "44124040"]
[BlackFideId "14165570"]
[WhiteElo "2490"]
[BlackElo "2409"]
[Result "1-0"]
[Round "7"]
[TimeControl "180+2"]
[Date "2023.07.25"]
[WhiteClock "0:01:00"]
[BlackClock "0:00:27"]
[Board "139"]

1. e4 {[%clk 0:03:00]}  Nf6 {[%clk 0:02:59]} 2. e5 {[%clk 0:03:00]}  Nd5 {[%clk 0:02:58]} 3. c4 {[%clk 0:03:01]}  Nb6 {[%clk 0:02:58]} 4. d4 {[%clk 0:03:01]}  d6 {[%clk 0:02:59]} 5. exd6 {[%clk 0:03:01]}  cxd6 {[%clk 0:03:00]} 6. Nc3 {[%clk 0:03:02]}  g6 {[%clk 0:03:00]} 7. Nf3 {[%clk 0:03:01]}  Bg7 {[%clk 0:03:01]} 8. h3 {[%clk 0:03:01]}  O-O {[%clk 0:03:01]} 9. Be2 {[%clk 0:03:00]}  Nc6 {[%clk 0:02:56]} 10. O-O {[%clk 0:02:59]}  Bf5 {[%clk 0:02:56]} 11. a3 {[%clk 0:02:55]}  e5 {[%clk 0:02:53]} 12. d5 {[%clk 0:02:54]}  Nd4 {[%clk 0:02:38]} 13. Nxd4 {[%clk 0:02:54]}  exd4 {[%clk 0:02:39]} 14. Nb5 {[%clk 0:02:54]}  Qf6 {[%clk 0:02:38]} 15. Bf4 {[%clk 0:02:48]}  Bxh3 {[%clk 0:02:38]} 16. Bxd6 {[%clk 0:02:46]}  Qg5 {[%clk 0:02:25]} 17. Bg3 {[%clk 0:02:40]}  Be5 {[%clk 0:02:25]} 18. Qb3 {[%clk 0:02:28]}  a6 {[%clk 0:02:11]} 19. f4 {[%clk 0:02:10]}  Qh6 {[%clk 0:01:51]} 20. fxe5 {[%clk 0:02:09]}  axb5 {[%clk 0:01:51]} 21. gxh3 {[%clk 0:02:09]}  Nxc4 {[%clk 0:01:47]} 22. Bxc4 {[%clk 0:02:05]}  bxc4 {[%clk 0:01:46]} 23. Qxc4 {[%clk 0:01:57]}  Qxh3 {[%clk 0:01:45]} 24. Rf3 {[%clk 0:01:57]}  Qg4 {[%clk 0:01:40]} 25. Kg2 {[%clk 0:01:50]}  Rac8 {[%clk 0:01:31]} 26. Qd3 {[%clk 0:01:48]}  Rc5 {[%clk 0:01:27]} 27. Rf4 {[%clk 0:01:46]}  Qc8 {[%clk 0:01:26]} 28. Qxd4 {[%clk 0:01:42]}  Rd8 {[%clk 0:01:26]} 29. d6 {[%clk 0:01:41]}  Qc6+ {[%clk 0:01:26]} 30. Kg1 {[%clk 0:01:33]}  Rc2 {[%clk 0:01:19]} 31. Rf2 {[%clk 0:01:30]}  Rc4 {[%clk 0:01:19]} 32. Qd1 {[%clk 0:01:22]}  h5 {[%clk 0:01:11]} 33. Qf3 {[%clk 0:01:20]}  Qd7 {[%clk 0:01:11]} 34. Kh2 {[%clk 0:01:11]}  h4 {[%clk 0:00:55]} 35. Bf4 {[%clk 0:01:11]}  Qf5 {[%clk 0:00:56]} 36. Rg1 {[%clk 0:01:07]}  f6 {[%clk 0:00:32]} 37. Qd5+ {[%clk 0:01:04]}  Kh7 {[%clk 0:00:33]} 38. Qxc4 {[%clk 0:01:02]}  g5 {[%clk 0:00:33]} 39. Qf7+ {[%clk 0:01:01]}  Kh6 {[%clk 0:00:27]} 40. Bxg5+ {[%clk 0:01:00]} 1-0


[Site "https://www.chess.com"]

[Event "Titled Tuesday Blitz July 25 Early 2023"]
[White "Mei, Austin"]
[Black "Iljin, Timofey"]
[WhiteFideId "30948479"]
[BlackFideId "14110180"]
[WhiteElo "2489"]
[BlackElo "2399"]
[Result "0-1"]
[Round "7"]
[TimeControl "180+2"]
[Date "2023.07.25"]
[WhiteClock "0:00:19"]
[BlackClock "0:00:13"]
[Board "140"]

1. e4 {[%clk 0:03:00]}  e5 {[%clk 0:02:58]} 2. f4 {[%clk 0:03:00]}  d5 {[%clk 0:02:57]} 3. exd5 {[%clk 0:03:00]}  exf4 {[%clk 0:02:58]} 4. Nf3 {[%clk 0:03:00]}  c6 {[%clk 0:02:59]} 5. d4 {[%clk 0:02:58]}  Bd6 {[%clk 0:02:57]} 6. dxc6 {[%clk 0:02:49]}  Nxc6 {[%clk 0:02:58]} 7. Bd3 {[%clk 0:02:49]}  Nf6 {[%clk 0:02:58]} 8. O-O {[%clk 0:02:49]}  O-O {[%clk 0:02:57]} 9. c3 {[%clk 0:02:46]}  Bg4 {[%clk 0:02:57]} 10. Nbd2 {[%clk 0:02:46]}  Re8 {[%clk 0:02:57]} 11. Qc2 {[%clk 0:02:36]}  Rc8 {[%clk 0:02:51]} 12. Re1 {[%clk 0:02:31]}  Nb4 {[%clk 0:02:46]} 13. Qb1 {[%clk 0:02:29]}  Rxe1+ {[%clk 0:02:44]} 14. Nxe1 {[%clk 0:02:29]}  Nxd3 {[%clk 0:02:29]} 15. Qxd3 {[%clk 0:02:30]}  Qe7 {[%clk 0:02:25]} 16. Ndf3 {[%clk 0:02:22]}  Re8 {[%clk 0:02:23]} 17. Bd2 {[%clk 0:02:21]}  Ne4 {[%clk 0:02:21]} 18. Qe2 {[%clk 0:01:59]}  Qd7 {[%clk 0:01:50]} 19. Qf1 {[%clk 0:01:31]}  Nxd2 {[%clk 0:01:30]} 20. Nxd2 {[%clk 0:01:31]}  Be2 {[%clk 0:01:24]} 21. Qf2 {[%clk 0:01:31]}  Qg4 {[%clk 0:01:24]} 22. Nef3 {[%clk 0:01:26]}  Bxf3 {[%clk 0:01:06]} 23. Nxf3 {[%clk 0:01:24]}  Re3 {[%clk 0:01:05]} 24. Re1 {[%clk 0:01:20]}  Qe6 {[%clk 0:01:05]} 25. Kf1 {[%clk 0:01:02]}  h6 {[%clk 0:00:45]} 26. Rxe3 {[%clk 0:01:00]}  fxe3 {[%clk 0:00:46]} 27. Qe2 {[%clk 0:01:01]}  Qxa2 {[%clk 0:00:43]} 28. Qxe3 {[%clk 0:01:00]}  Qb1+ {[%clk 0:00:41]} 29. Ne1 {[%clk 0:00:52]}  Qf5+ {[%clk 0:00:25]} 30. Qf2 {[%clk 0:00:49]}  Qd5 {[%clk 0:00:22]} 31. Nf3 {[%clk 0:00:40]}  a5 {[%clk 0:00:22]} 32. Qe2 {[%clk 0:00:39]}  Kf8 {[%clk 0:00:19]} 33. c4 {[%clk 0:00:40]}  Qf5 {[%clk 0:00:18]} 34. c5 {[%clk 0:00:40]}  Bxh2 {[%clk 0:00:18]} 35. Qb5 {[%clk 0:00:28]}  Bg3 {[%clk 0:00:11]} 36. Qxb7 {[%clk 0:00:23]}  Qd3+ {[%clk 0:00:11]} 37. Kg1 {[%clk 0:00:20]}  Qd1+ {[%clk 0:00:12]} 38. Ne1 {[%clk 0:00:19]}  Qxe1# {[%clk 0:00:13]} 0-1


[Site "https://www.chess.com"]

[Event "Titled Tuesday Blitz July 25 Early 2023"]
[White "Stork, Oliver"]
[Black "Roberson, Peter T"]
[WhiteFideId "12955728"]
[BlackFideId "412384"]
[WhiteElo "2391"]
[BlackElo "2486"]
[Result "0-1"]
[Round "7"]
[TimeControl "180+2"]
[Date "2023.07.25"]
[WhiteClock "0:01:19"]
[BlackClock "0:01:11"]
[Board "142"]

1. Nf3 {[%clk 0:03:00]}  b6 {[%clk 0:02:59]} 2. c4 {[%clk 0:03:00]}  Bb7 {[%clk 0:02:59]} 3. d4 {[%clk 0:03:01]}  e6 {[%clk 0:03:00]} 4. Nc3 {[%clk 0:03:01]}  Bb4 {[%clk 0:03:00]} 5. Bd2 {[%clk 0:02:59]}  f5 {[%clk 0:03:00]} 6. g3 {[%clk 0:02:53]}  Nf6 {[%clk 0:03:00]} 7. Bg2 {[%clk 0:02:54]}  O-O {[%clk 0:03:01]} 8. O-O {[%clk 0:02:54]}  d6 {[%clk 0:02:59]} 9. a3 {[%clk 0:02:53]}  Bxc3 {[%clk 0:02:59]} 10. Bxc3 {[%clk 0:02:54]}  Nbd7 {[%clk 0:02:59]} 11. d5 {[%clk 0:02:34]}  exd5 {[%clk 0:02:56]} 12. Ng5 {[%clk 0:02:33]}  Nc5 {[%clk 0:02:45]} 13. cxd5 {[%clk 0:02:33]}  Qe7 {[%clk 0:02:40]} 14. Re1 {[%clk 0:02:24]}  h6 {[%clk 0:02:35]} 15. Nh3 {[%clk 0:02:22]}  g5 {[%clk 0:02:29]} 16. f4 {[%clk 0:02:12]}  Nce4 {[%clk 0:02:26]} 17. fxg5 {[%clk 0:02:11]}  hxg5 {[%clk 0:02:27]} 18. Rf1 {[%clk 0:02:07]}  Ng4 {[%clk 0:02:12]} 19. Qd4 {[%clk 0:01:52]}  Nxc3 {[%clk 0:02:09]} 20. bxc3 {[%clk 0:01:52]}  Qe3+ {[%clk 0:02:05]} 21. Qxe3 {[%clk 0:01:46]}  Nxe3 {[%clk 0:02:06]} 22. Nxg5 {[%clk 0:01:37]}  Nxg2 {[%clk 0:01:49]} 23. Kxg2 {[%clk 0:01:34]}  Bxd5+ {[%clk 0:01:50]} 24. Kg1 {[%clk 0:01:34]}  Rae8 {[%clk 0:01:39]} 25. Rf2 {[%clk 0:01:33]}  Re3 {[%clk 0:01:38]} 26. Raf1 {[%clk 0:01:33]}  Rxc3 {[%clk 0:01:31]} 27. Rxf5 {[%clk 0:01:33]}  Rxf5 {[%clk 0:01:31]} 28. Rxf5 {[%clk 0:01:34]}  Bc4 {[%clk 0:01:18]} 29. Rf3 {[%clk 0:01:29]}  Rxf3 {[%clk 0:01:14]} 30. exf3 {[%clk 0:01:30]}  b5 {[%clk 0:01:12]} 31. h4 {[%clk 0:01:29]}  a5 {[%clk 0:01:12]} 32. h5 {[%clk 0:01:19]}  b4 {[%clk 0:01:11]} 0-1


[Site "https://www.chess.com"]